{"text_format":"3","workbook":"xlsx","n_sheets":5,"sheets":["Šalių apžvalga","Svečių sąrašas","Maistas Ir Gėrimai","Kiti būtiniausieji produktai","Sėdėjimo vietų schema"],"not_rendered":{"defined_names":9},"read":"whole","date_system":"1900"}

{"sheet":"Šalių apžvalga","index":0,"n_rows":21,"n_cols":8,"rows_kept":21,"merged":[[6,3,6,4],[6,5,6,6],[9,1,9,2]]}
[]
[]
[null,"Šventės apžvalga"]
[]
[]
[null,"RENGINYS",null,"SVEČIŲ SUVESTINĖ",{"$nulls":3},{"$f":"\"NEGAUTI PRANEŠIMAI APIE DALYVAVIMĄ: \"&NegautiPrApieDal","v":"NEGAUTI PRANEŠIMAI APIE DALYVAVIMĄ: 2"}]
[null,"Senelio 75-asis gimtadienis",null,"KVIETIMŲ APŽVALGA",null,"IŠLAIDOS VIENAM SVEČIUI",null,"BIUDŽETO SUMA"]
[{"$nulls":3},"Patvirtinti svečiaig","Iš viso patvirtinta","Maistas","Kita","Iš viso"]
[null,"DATA",null,"Suaugusieji",{"$f":"SUMIF(SvečiųStalas[DALYVAUJA?],\"=Taip\",SvečiųStalas[SUAUGUSIEJI])","v":26},{"$f":"MaistoStalas[[#Totals],[IŠLAIDOS VIENAM SUAUGUSIAJAM]]","v":{"v":12.690089084110037,"d":"12.69 Lt"}},{"$f":"BūtProdKainaSvečiui","v":{"v":18.695652173913043,"d":"18.70 Lt"}},{"$f":"(DalyviųSuvestinė[[#This Row],[Maistas]]+DalyviųSuvestinė[[#This Row],[Kita]])*IšVisoSuaug","v":{"v":816.0292727086002,"d":"816.03 Lt"}}]
[null,"2011-06-14",null,"Vaikai",{"$f":"SUMIF(SvečiųStalas[DALYVAUJA?],\"=Taip\",SvečiųStalas[VAIKAI])","v":20},{"$f":"MaistoStalas[[#Totals],[IŠLAIDOS VIENAM VAIKUI]]","v":{"v":7.252884190656953,"d":"7.25 Lt"}},{"$f":"BūtProdKainaSvečiui","v":{"v":18.695652173913043,"d":"18.70 Lt"}},{"$f":"(DalyviųSuvestinė[[#This Row],[Maistas]]+DalyviųSuvestinė[[#This Row],[Kita]])*IšVisoVaikų","v":{"v":518.9707272914,"d":"518.97 Lt"}}]
[{"$nulls":3},"Iš viso",{"$f":"SUBTOTAL(109,DalyviųSuvestinė[Iš viso patvirtinta])","v":46},{"$f":"\"Vid.     \"&TEXT(SUBTOTAL(101,DalyviųSuvestinė[Maistas]),\"#,## Lt\")","v":"Vid.     9,97 Lt"},{"$f":"\"Vid.     \"&TEXT(SUBTOTAL(101,DalyviųSuvestinė[Kita]),\"#,## Lt\")","v":"Vid.     18,7 Lt"},{"$f":"SUBTOTAL(109,DalyviųSuvestinė[Iš viso])","v":{"v":1335,"d":"1,335.00 Lt"}}]
[null,"LAIKAS"]
[null,"nuo 14.00 val. iki 16.00 val."]
[null,"VIETA"]
[null,"Tetos Kim namas",null,"BIUDŽETO SUVESTINĖ"]
[{"$nulls":3},"PREKĖ","SKAIČIUS","BIUDŽETO SUMA","BENDROSIOS IŠLAIDOS","SKIRTUMAS"]
[{"$nulls":3},"Maistas ir gėrimai",{"$f":"COUNTA(MaistoStalas[MAISTO IR GĖRIMŲ PREKĖ])","v":18},{"v":500,"d":"500.00 Lt"},{"$f":"MaistoStalas[[#Totals],[BENDROSIOS IŠLAIDOS]]","v":{"v":475,"d":"475.00 Lt"}},{"$f":"BiudžetoApžvalga[[#This Row],[BIUDŽETO SUMA]]-BiudžetoApžvalga[[#This Row],[BENDROSIOS IŠLAIDOS]]","v":{"v":25,"d":"25.00 Lt"}}]
[{"$nulls":3},{"$f":"_1StalAntraštė","v":"Įranga ir atsargos"},{"$f":"COUNTA(_1StalBiudžet[Įranga ir atsargos])","v":7},{"v":400,"d":"400.00 Lt"},{"$f":"_1StalBiudžet[[#Totals],[Kaina]]","v":{"v":400,"d":"400.00 Lt"}},{"$f":"BiudžetoApžvalga[[#This Row],[BIUDŽETO SUMA]]-BiudžetoApžvalga[[#This Row],[BENDROSIOS IŠLAIDOS]]","v":{"v":0,"d":"0.00 Lt"}}]
[{"$nulls":3},{"$f":"_2StalAntraštė","v":"Papuošimai"},{"$f":"COUNTA(_2StalBiudžet[Papuošimai])","v":4},{"v":150,"d":"150.00 Lt"},{"$f":"_2StalBiudžet[[#Totals],[Kaina]]","v":{"v":175,"d":"175.00 Lt"}},{"$f":"BiudžetoApžvalga[[#This Row],[BIUDŽETO SUMA]]-BiudžetoApžvalga[[#This Row],[BENDROSIOS IŠLAIDOS]]","v":{"v":-25,"d":"(25.00 Lt)"}}]
[{"$nulls":3},{"$f":"_3StalAntraštė","v":"Kita"},{"$f":"COUNTA(_3StalBiudžet[Kita])","v":4},{"v":300,"d":"300.00 Lt"},{"$f":"_3StalBiudžet[[#Totals],[Kaina]]","v":{"v":285,"d":"285.00 Lt"}},{"$f":"BiudžetoApžvalga[[#This Row],[BIUDŽETO SUMA]]-BiudžetoApžvalga[[#This Row],[BENDROSIOS IŠLAIDOS]]","v":{"v":15,"d":"15.00 Lt"}}]
[{"$nulls":3},"Iš viso",{"$f":"SUBTOTAL(109,BiudžetoApžvalga[SKAIČIUS])","v":33},{"$f":"SUBTOTAL(109,BiudžetoApžvalga[BIUDŽETO SUMA])","v":{"v":1350,"d":"1,350.00 Lt"}},{"$f":"SUBTOTAL(109,BiudžetoApžvalga[BENDROSIOS IŠLAIDOS])","v":{"v":1335,"d":"1,335.00 Lt"}},{"$f":"BiudžetoApžvalga[[#Totals],[BIUDŽETO SUMA]]-BiudžetoApžvalga[[#Totals],[BENDROSIOS IŠLAIDOS]]","v":{"v":15,"d":"15.00 Lt"}}]

{"sheet":"Svečių sąrašas","index":1,"n_rows":22,"n_cols":12,"rows_kept":22}
[]
[]
[null,"Svečių sąrašas"]
[]
[]
[]
[null,"VARDAS","ADRESAS","MIESTAS","VALSTIJA","PAŠTO INDEKSAS","TELEFONAS","EL. PAŠTAS","DALYVAUJA?","VAIKAI","SUAUGUSIEJI","IŠ VISO"]
[null,"1 šeima","1 adresas","1 miestas","1 valstija","1 pašto indeksas","1 telefono numeris","1 el. pašto adresas","Ne",2,2,{"$f":"SUM(SvečiųStalas[[#This Row],[VAIKAI]:[SUAUGUSIEJI]])","v":4}]
[null,"2 šeima","2 adresas","2 miestas","2 valstija","2 pašto indeksas","2 telefono numeris","2 el. pašto adresas","Taip",1,1,{"$f":"SUM(SvečiųStalas[[#This Row],[VAIKAI]:[SUAUGUSIEJI]])","v":2}]
[null,"3 šeima","3 adresas","3 miestas","3 valstija","3 pašto indeksas","3 telefono numeris","3 el. pašto adresas","Taip",3,3,{"$f":"SUM(SvečiųStalas[[#This Row],[VAIKAI]:[SUAUGUSIEJI]])","v":6}]
[null,"4 šeima","4 adresas","4 miestas","4 valstija","4 pašto indeksas","4 telefono numeris","4 el. pašto adresas",null,null,2,{"$f":"SUM(SvečiųStalas[[#This Row],[VAIKAI]:[SUAUGUSIEJI]])","v":2}]
[null,"5 šeima","5 adresas","5 miestas","5 valstija","5 pašto indeksas","5 telefono numeris","5 el. pašto adresas","Taip",4,3,{"$f":"SUM(SvečiųStalas[[#This Row],[VAIKAI]:[SUAUGUSIEJI]])","v":7}]
[null,"6 šeima","6 adresas","6 miestas","6 valstija","6 pašto indeksas","6 telefono numeris","6 el. pašto adresas","Taip",2,2,{"$f":"SUM(SvečiųStalas[[#This Row],[VAIKAI]:[SUAUGUSIEJI]])","v":4}]
[null,"7 šeima","7 adresas","7 miestas","7 valstija","7 pašto indeksas","7 telefono numeris","7 el. pašto adresas","Taip",1,4,{"$f":"SUM(SvečiųStalas[[#This Row],[VAIKAI]:[SUAUGUSIEJI]])","v":5}]
[null,"8 šeima","8 adresas","8 miestas","8 valstija","8 pašto indeksas","8 telefono numeris","8 el. pašto adresas","Ne",5,3,{"$f":"SUM(SvečiųStalas[[#This Row],[VAIKAI]:[SUAUGUSIEJI]])","v":8}]
[null,"9 šeima","9 adresas","9 miestas","9 valstija","9 pašto indeksas","9 telefono numeris","9 el. pašto adresas","Taip",3,2,{"$f":"SUM(SvečiųStalas[[#This Row],[VAIKAI]:[SUAUGUSIEJI]])","v":5}]
[null,"10 šeima","10 adresas","10 miestas","10 valstija","10 pašto indeksas","10 telefono numeris","10 el. pašto adresas","Taip",null,4,{"$f":"SUM(SvečiųStalas[[#This Row],[VAIKAI]:[SUAUGUSIEJI]])","v":4}]
[null,"11 šeima","11 adresas","11 miestas","11 valstija","11 pašto indeksas","11 telefono numeris","11 el. pašto adresas","Taip",3,5,{"$f":"SUM(SvečiųStalas[[#This Row],[VAIKAI]:[SUAUGUSIEJI]])","v":8}]
[null,"12 šeima","12 adresas","12 miestas","12 valstija","12 pašto indeksas","12 telefono numeris","12 el. pašto adresas","Ne",2,3,{"$f":"SUM(SvečiųStalas[[#This Row],[VAIKAI]:[SUAUGUSIEJI]])","v":5}]
[null,"13 šeima","13 adresas","13 miestas","13 valstija","13 pašto indeksas","13 telefono numeris","13 el. pašto adresas","Taip",3,2,{"$f":"SUM(SvečiųStalas[[#This Row],[VAIKAI]:[SUAUGUSIEJI]])","v":5}]
[null,"14 šeima","14 adresas","14 miestas","14 valstija","14 pašto indeksas","14 telefono numeris","14 el. pašto adresas","Ne",null,1,{"$f":"SUM(SvečiųStalas[[#This Row],[VAIKAI]:[SUAUGUSIEJI]])","v":1}]
[null,"15 šeima","15 adresas","15 miestas","15 valstija","15 pašto indeksas","15 telefono numeris","15 el. pašto adresas",null,null,2,{"$f":"SUM(SvečiųStalas[[#This Row],[VAIKAI]:[SUAUGUSIEJI]])","v":2}]

{"sheet":"Maistas Ir Gėrimai","index":2,"n_rows":25,"n_cols":10,"rows_kept":25}
[]
[]
[null,"Maistas ir gėrimai"]
[]
[null,"Įveskite kainą ir apytiksles porcijas, kad galėtumėte automatiškai apskaičiuoti vienetus ir kainą už porciją atsižvelgdami į bendrą dalyvaujančiųjų skaičių"]
[null,"MAISTO IR GĖRIMŲ PREKĖ","BENDROSIOS IŠLAIDOS","PORCIJA VIENAM VAIKUI","PORCIJA VIENAM SUAUGUSIAJAM","IŠ VISO PORCIJŲ","PORCIJOS KAINA","IŠLAIDOS VIENAM VAIKUI","IŠLAIDOS VIENAM SUAUGUSIAJAM","PASTABOS"]
[null,"Gazuoti gėrimai",{"v":15,"d":"15.00 Lt"},0.5,2,{"$f":"(MaistoStalas[[#This Row],[PORCIJA VIENAM VAIKUI]]*IšVisoVaikų)+(MaistoStalas[[#This Row],[PORCIJA VIENAM SUAUGUSIAJAM]]*IšVisoSuaug)","v":62},{"$f":"IFERROR(MaistoStalas[[#This Row],[BENDROSIOS IŠLAIDOS]]/MaistoStalas[[#This Row],[IŠ VISO PORCIJŲ]],\"\")","v":{"v":0.24193548387096775,"d":"0.24 Lt"}},{"$f":"IFERROR(MaistoStalas[[#This Row],[PORCIJOS KAINA]]*MaistoStalas[[#This Row],[PORCIJA VIENAM VAIKUI]],\"\")","v":{"v":0.12096774193548387,"d":"0.12 Lt"}},{"$f":"IFERROR(MaistoStalas[[#This Row],[PORCIJOS KAINA]]*MaistoStalas[[#This Row],[PORCIJA VIENAM SUAUGUSIAJAM]],\"\")","v":{"v":0.4838709677419355,"d":"0.48 Lt"}},"2 litrų buteliai"]
[null,"Sulčių pakuotės",{"v":15,"d":"15.00 Lt"},2,0,{"$f":"(MaistoStalas[[#This Row],[PORCIJA VIENAM VAIKUI]]*IšVisoVaikų)+(MaistoStalas[[#This Row],[PORCIJA VIENAM SUAUGUSIAJAM]]*IšVisoSuaug)","v":40},{"$f":"IFERROR(MaistoStalas[[#This Row],[BENDROSIOS IŠLAIDOS]]/MaistoStalas[[#This Row],[IŠ VISO PORCIJŲ]],\"\")","v":{"v":0.375,"d":"0.38 Lt"}},{"$f":"IFERROR(MaistoStalas[[#This Row],[PORCIJOS KAINA]]*MaistoStalas[[#This Row],[PORCIJA VIENAM VAIKUI]],\"\")","v":{"v":0.75,"d":"0.75 Lt"}},{"$f":"IFERROR(MaistoStalas[[#This Row],[PORCIJOS KAINA]]*MaistoStalas[[#This Row],[PORCIJA VIENAM SUAUGUSIAJAM]],\"\")","v":{"v":0,"d":"0.00 Lt"}},"Obuoliai ir žaliosios vynuogės"]
[null,"Vynas",{"v":50,"d":"50.00 Lt"},0,2,{"$f":"(MaistoStalas[[#This Row],[PORCIJA VIENAM VAIKUI]]*IšVisoVaikų)+(MaistoStalas[[#This Row],[PORCIJA VIENAM SUAUGUSIAJAM]]*IšVisoSuaug)","v":52},{"$f":"IFERROR(MaistoStalas[[#This Row],[BENDROSIOS IŠLAIDOS]]/MaistoStalas[[#This Row],[IŠ VISO PORCIJŲ]],\"\")","v":{"v":0.9615384615384616,"d":"0.96 Lt"}},{"$f":"IFERROR(MaistoStalas[[#This Row],[PORCIJOS KAINA]]*MaistoStalas[[#This Row],[PORCIJA VIENAM VAIKUI]],\"\")","v":{"v":0,"d":"0.00 Lt"}},{"$f":"IFERROR(MaistoStalas[[#This Row],[PORCIJOS KAINA]]*MaistoStalas[[#This Row],[PORCIJA VIENAM SUAUGUSIAJAM]],\"\")","v":{"v":1.9230769230769231,"d":"1.92 Lt"}}]
[null,"Tortas",{"v":75,"d":"75.00 Lt"},1,1,{"$f":"(MaistoStalas[[#This Row],[PORCIJA VIENAM VAIKUI]]*IšVisoVaikų)+(MaistoStalas[[#This Row],[PORCIJA VIENAM SUAUGUSIAJAM]]*IšVisoSuaug)","v":46},{"$f":"IFERROR(MaistoStalas[[#This Row],[BENDROSIOS IŠLAIDOS]]/MaistoStalas[[#This Row],[IŠ VISO PORCIJŲ]],\"\")","v":{"v":1.6304347826086956,"d":"1.63 Lt"}},{"$f":"IFERROR(MaistoStalas[[#This Row],[PORCIJOS KAINA]]*MaistoStalas[[#This Row],[PORCIJA VIENAM VAIKUI]],\"\")","v":{"v":1.6304347826086956,"d":"1.63 Lt"}},{"$f":"IFERROR(MaistoStalas[[#This Row],[PORCIJOS KAINA]]*MaistoStalas[[#This Row],[PORCIJA VIENAM SUAUGUSIAJAM]],\"\")","v":{"v":1.6304347826086956,"d":"1.63 Lt"}},"Užsakyti iš vietinės kepyklos"]
[null,"Ledai",{"v":20,"d":"20.00 Lt"},1,1.5,{"$f":"(MaistoStalas[[#This Row],[PORCIJA VIENAM VAIKUI]]*IšVisoVaikų)+(MaistoStalas[[#This Row],[PORCIJA VIENAM SUAUGUSIAJAM]]*IšVisoSuaug)","v":59},{"$f":"IFERROR(MaistoStalas[[#This Row],[BENDROSIOS IŠLAIDOS]]/MaistoStalas[[#This Row],[IŠ VISO PORCIJŲ]],\"\")","v":{"v":0.3389830508474576,"d":"0.34 Lt"}},{"$f":"IFERROR(MaistoStalas[[#This Row],[PORCIJOS KAINA]]*MaistoStalas[[#This Row],[PORCIJA VIENAM VAIKUI]],\"\")","v":{"v":0.3389830508474576,"d":"0.34 Lt"}},{"$f":"IFERROR(MaistoStalas[[#This Row],[PORCIJOS KAINA]]*MaistoStalas[[#This Row],[PORCIJA VIENAM SUAUGUSIAJAM]],\"\")","v":{"v":0.5084745762711864,"d":"0.51 Lt"}}]
[null,"Desertinės taurės",{"v":15,"d":"15.00 Lt"},1,0,{"$f":"(MaistoStalas[[#This Row],[PORCIJA VIENAM VAIKUI]]*IšVisoVaikų)+(MaistoStalas[[#This Row],[PORCIJA VIENAM SUAUGUSIAJAM]]*IšVisoSuaug)","v":20},{"$f":"IFERROR(MaistoStalas[[#This Row],[BENDROSIOS IŠLAIDOS]]/MaistoStalas[[#This Row],[IŠ VISO PORCIJŲ]],\"\")","v":{"v":0.75,"d":"0.75 Lt"}},{"$f":"IFERROR(MaistoStalas[[#This Row],[PORCIJOS KAINA]]*MaistoStalas[[#This Row],[PORCIJA VIENAM VAIKUI]],\"\")","v":{"v":0.75,"d":"0.75 Lt"}},{"$f":"IFERROR(MaistoStalas[[#This Row],[PORCIJOS KAINA]]*MaistoStalas[[#This Row],[PORCIJA VIENAM SUAUGUSIAJAM]],\"\")","v":{"v":0,"d":"0.00 Lt"}},"Įsigyti supakuotų formelių: vanilės ir šokolado skonio"]
[null,"Įdaryti grybai",{"v":32,"d":"32.00 Lt"},1,2,{"$f":"(MaistoStalas[[#This Row],[PORCIJA VIENAM VAIKUI]]*IšVisoVaikų)+(MaistoStalas[[#This Row],[PORCIJA VIENAM SUAUGUSIAJAM]]*IšVisoSuaug)","v":72},{"$f":"IFERROR(MaistoStalas[[#This Row],[BENDROSIOS IŠLAIDOS]]/MaistoStalas[[#This Row],[IŠ VISO PORCIJŲ]],\"\")","v":{"v":0.4444444444444444,"d":"0.44 Lt"}},{"$f":"IFERROR(MaistoStalas[[#This Row],[PORCIJOS KAINA]]*MaistoStalas[[#This Row],[PORCIJA VIENAM VAIKUI]],\"\")","v":{"v":0.4444444444444444,"d":"0.44 Lt"}},{"$f":"IFERROR(MaistoStalas[[#This Row],[PORCIJOS KAINA]]*MaistoStalas[[#This Row],[PORCIJA VIENAM SUAUGUSIAJAM]],\"\")","v":{"v":0.8888888888888888,"d":"0.89 Lt"}},"Pievagrybiai, įdaryti minkštu sūriu ir dešra"]
[null,"Duonos užkandėlė",{"v":22,"d":"22.00 Lt"},0,3,{"$f":"(MaistoStalas[[#This Row],[PORCIJA VIENAM VAIKUI]]*IšVisoVaikų)+(MaistoStalas[[#This Row],[PORCIJA VIENAM SUAUGUSIAJAM]]*IšVisoSuaug)","v":78},{"$f":"IFERROR(MaistoStalas[[#This Row],[BENDROSIOS IŠLAIDOS]]/MaistoStalas[[#This Row],[IŠ VISO PORCIJŲ]],\"\")","v":{"v":0.28205128205128205,"d":"0.28 Lt"}},{"$f":"IFERROR(MaistoStalas[[#This Row],[PORCIJOS KAINA]]*MaistoStalas[[#This Row],[PORCIJA VIENAM VAIKUI]],\"\")","v":{"v":0,"d":"0.00 Lt"}},{"$f":"IFERROR(MaistoStalas[[#This Row],[PORCIJOS KAINA]]*MaistoStalas[[#This Row],[PORCIJA VIENAM SUAUGUSIAJAM]],\"\")","v":{"v":0.8461538461538461,"d":"0.85 Lt"}},"Pomidorai ir bazilikas "]
[null,"Rūkyta lašiša",{"v":50,"d":"50.00 Lt"},1,2,{"$f":"(MaistoStalas[[#This Row],[PORCIJA VIENAM VAIKUI]]*IšVisoVaikų)+(MaistoStalas[[#This Row],[PORCIJA VIENAM SUAUGUSIAJAM]]*IšVisoSuaug)","v":72},{"$f":"IFERROR(MaistoStalas[[#This Row],[BENDROSIOS IŠLAIDOS]]/MaistoStalas[[#This Row],[IŠ VISO PORCIJŲ]],\"\")","v":{"v":0.6944444444444444,"d":"0.69 Lt"}},{"$f":"IFERROR(MaistoStalas[[#This Row],[PORCIJOS KAINA]]*MaistoStalas[[#This Row],[PORCIJA VIENAM VAIKUI]],\"\")","v":{"v":0.6944444444444444,"d":"0.69 Lt"}},{"$f":"IFERROR(MaistoStalas[[#This Row],[PORCIJOS KAINA]]*MaistoStalas[[#This Row],[PORCIJA VIENAM SUAUGUSIAJAM]],\"\")","v":{"v":1.3888888888888888,"d":"1.39 Lt"}}]
[null,"Maži riestainiai",{"v":20,"d":"20.00 Lt"},1,2,{"$f":"(MaistoStalas[[#This Row],[PORCIJA VIENAM VAIKUI]]*IšVisoVaikų)+(MaistoStalas[[#This Row],[PORCIJA VIENAM SUAUGUSIAJAM]]*IšVisoSuaug)","v":72},{"$f":"IFERROR(MaistoStalas[[#This Row],[BENDROSIOS IŠLAIDOS]]/MaistoStalas[[#This Row],[IŠ VISO PORCIJŲ]],\"\")","v":{"v":0.2777777777777778,"d":"0.28 Lt"}},{"$f":"IFERROR(MaistoStalas[[#This Row],[PORCIJOS KAINA]]*MaistoStalas[[#This Row],[PORCIJA VIENAM VAIKUI]],\"\")","v":{"v":0.2777777777777778,"d":"0.28 Lt"}},{"$f":"IFERROR(MaistoStalas[[#This Row],[PORCIJOS KAINA]]*MaistoStalas[[#This Row],[PORCIJA VIENAM SUAUGUSIAJAM]],\"\")","v":{"v":0.5555555555555556,"d":"0.56 Lt"}},"4 krepšiai rūšiuotų"]
[null,"Tepamas sūris",{"v":10,"d":"10.00 Lt"},1,2,{"$f":"(MaistoStalas[[#This Row],[PORCIJA VIENAM VAIKUI]]*IšVisoVaikų)+(MaistoStalas[[#This Row],[PORCIJA VIENAM SUAUGUSIAJAM]]*IšVisoSuaug)","v":72},{"$f":"IFERROR(MaistoStalas[[#This Row],[BENDROSIOS IŠLAIDOS]]/MaistoStalas[[#This Row],[IŠ VISO PORCIJŲ]],\"\")","v":{"v":0.1388888888888889,"d":"0.14 Lt"}},{"$f":"IFERROR(MaistoStalas[[#This Row],[PORCIJOS KAINA]]*MaistoStalas[[#This Row],[PORCIJA VIENAM VAIKUI]],\"\")","v":{"v":0.1388888888888889,"d":"0.14 Lt"}},{"$f":"IFERROR(MaistoStalas[[#This Row],[PORCIJOS KAINA]]*MaistoStalas[[#This Row],[PORCIJA VIENAM SUAUGUSIAJAM]],\"\")","v":{"v":0.2777777777777778,"d":"0.28 Lt"}},"2 didelės statinės"]
[null,"Kapariai",{"v":12,"d":"12.00 Lt"},1,2,{"$f":"(MaistoStalas[[#This Row],[PORCIJA VIENAM VAIKUI]]*IšVisoVaikų)+(MaistoStalas[[#This Row],[PORCIJA VIENAM SUAUGUSIAJAM]]*IšVisoSuaug)","v":72},{"$f":"IFERROR(MaistoStalas[[#This Row],[BENDROSIOS IŠLAIDOS]]/MaistoStalas[[#This Row],[IŠ VISO PORCIJŲ]],\"\")","v":{"v":0.16666666666666666,"d":"0.17 Lt"}},{"$f":"IFERROR(MaistoStalas[[#This Row],[PORCIJOS KAINA]]*MaistoStalas[[#This Row],[PORCIJA VIENAM VAIKUI]],\"\")","v":{"v":0.16666666666666666,"d":"0.17 Lt"}},{"$f":"IFERROR(MaistoStalas[[#This Row],[PORCIJOS KAINA]]*MaistoStalas[[#This Row],[PORCIJA VIENAM SUAUGUSIAJAM]],\"\")","v":{"v":0.3333333333333333,"d":"0.33 Lt"}},"3 stiklainiai"]
[null,"Viščiukų sparneliai",{"v":45,"d":"45.00 Lt"},2,4,{"$f":"(MaistoStalas[[#This Row],[PORCIJA VIENAM VAIKUI]]*IšVisoVaikų)+(MaistoStalas[[#This Row],[PORCIJA VIENAM SUAUGUSIAJAM]]*IšVisoSuaug)","v":144},{"$f":"IFERROR(MaistoStalas[[#This Row],[BENDROSIOS IŠLAIDOS]]/MaistoStalas[[#This Row],[IŠ VISO PORCIJŲ]],\"\")","v":{"v":0.3125,"d":"0.31 Lt"}},{"$f":"IFERROR(MaistoStalas[[#This Row],[PORCIJOS KAINA]]*MaistoStalas[[#This Row],[PORCIJA VIENAM VAIKUI]],\"\")","v":{"v":0.625,"d":"0.63 Lt"}},{"$f":"IFERROR(MaistoStalas[[#This Row],[PORCIJOS KAINA]]*MaistoStalas[[#This Row],[PORCIJA VIENAM SUAUGUSIAJAM]],\"\")","v":{"v":1.25,"d":"1.25 Lt"}},"Pirkti iš vietinės sparnelių parduotuvės"]
[null,"Humusas",{"v":10,"d":"10.00 Lt"},4,6,{"$f":"(MaistoStalas[[#This Row],[PORCIJA VIENAM VAIKUI]]*IšVisoVaikų)+(MaistoStalas[[#This Row],[PORCIJA VIENAM SUAUGUSIAJAM]]*IšVisoSuaug)","v":236},{"$f":"IFERROR(MaistoStalas[[#This Row],[BENDROSIOS IŠLAIDOS]]/MaistoStalas[[#This Row],[IŠ VISO PORCIJŲ]],\"\")","v":{"v":0.0423728813559322,"d":"0.04 Lt"}},{"$f":"IFERROR(MaistoStalas[[#This Row],[PORCIJOS KAINA]]*MaistoStalas[[#This Row],[PORCIJA VIENAM VAIKUI]],\"\")","v":{"v":0.1694915254237288,"d":"0.17 Lt"}},{"$f":"IFERROR(MaistoStalas[[#This Row],[PORCIJOS KAINA]]*MaistoStalas[[#This Row],[PORCIJA VIENAM SUAUGUSIAJAM]],\"\")","v":{"v":0.2542372881355932,"d":"0.25 Lt"}},"Pagaminti iš vakaro"]
[null,"Pita traškučiai su parmezano sūriu",{"v":14,"d":"14.00 Lt"},4,6,{"$f":"(MaistoStalas[[#This Row],[PORCIJA VIENAM VAIKUI]]*IšVisoVaikų)+(MaistoStalas[[#This Row],[PORCIJA VIENAM SUAUGUSIAJAM]]*IšVisoSuaug)","v":236},{"$f":"IFERROR(MaistoStalas[[#This Row],[BENDROSIOS IŠLAIDOS]]/MaistoStalas[[#This Row],[IŠ VISO PORCIJŲ]],\"\")","v":{"v":0.059322033898305086,"d":"0.06 Lt"}},{"$f":"IFERROR(MaistoStalas[[#This Row],[PORCIJOS KAINA]]*MaistoStalas[[#This Row],[PORCIJA VIENAM VAIKUI]],\"\")","v":{"v":0.23728813559322035,"d":"0.24 Lt"}},{"$f":"IFERROR(MaistoStalas[[#This Row],[PORCIJOS KAINA]]*MaistoStalas[[#This Row],[PORCIJA VIENAM SUAUGUSIAJAM]],\"\")","v":{"v":0.3559322033898305,"d":"0.36 Lt"}},"Pagaminti iš vakaro"]
[null,"Rūšiuotos daržovės",{"v":30,"d":"30.00 Lt"},4,10,{"$f":"(MaistoStalas[[#This Row],[PORCIJA VIENAM VAIKUI]]*IšVisoVaikų)+(MaistoStalas[[#This Row],[PORCIJA VIENAM SUAUGUSIAJAM]]*IšVisoSuaug)","v":340},{"$f":"IFERROR(MaistoStalas[[#This Row],[BENDROSIOS IŠLAIDOS]]/MaistoStalas[[#This Row],[IŠ VISO PORCIJŲ]],\"\")","v":{"v":0.08823529411764706,"d":"0.09 Lt"}},{"$f":"IFERROR(MaistoStalas[[#This Row],[PORCIJOS KAINA]]*MaistoStalas[[#This Row],[PORCIJA VIENAM VAIKUI]],\"\")","v":{"v":0.35294117647058826,"d":"0.35 Lt"}},{"$f":"IFERROR(MaistoStalas[[#This Row],[PORCIJOS KAINA]]*MaistoStalas[[#This Row],[PORCIJA VIENAM SUAUGUSIAJAM]],\"\")","v":{"v":0.8823529411764707,"d":"0.88 Lt"}},"Morkų lazdelės, salierai, brokoliai, žiediniai kopūstai, raudonieji ir žalieji pipirai"]
[null,"Sūrio rutuliukas",{"v":15,"d":"15.00 Lt"},5,10,{"$f":"(MaistoStalas[[#This Row],[PORCIJA VIENAM VAIKUI]]*IšVisoVaikų)+(MaistoStalas[[#This Row],[PORCIJA VIENAM SUAUGUSIAJAM]]*IšVisoSuaug)","v":360},{"$f":"IFERROR(MaistoStalas[[#This Row],[BENDROSIOS IŠLAIDOS]]/MaistoStalas[[#This Row],[IŠ VISO PORCIJŲ]],\"\")","v":{"v":0.041666666666666664,"d":"0.04 Lt"}},{"$f":"IFERROR(MaistoStalas[[#This Row],[PORCIJOS KAINA]]*MaistoStalas[[#This Row],[PORCIJA VIENAM VAIKUI]],\"\")","v":{"v":0.20833333333333331,"d":"0.21 Lt"}},{"$f":"IFERROR(MaistoStalas[[#This Row],[PORCIJOS KAINA]]*MaistoStalas[[#This Row],[PORCIJA VIENAM SUAUGUSIAJAM]],\"\")","v":{"v":0.41666666666666663,"d":"0.42 Lt"}},"Įvairūs: tepamas sūris, aštrus sūris su riešutais"]
[null,"Krekeriai",{"v":25,"d":"25.00 Lt"},5,10,{"$f":"(MaistoStalas[[#This Row],[PORCIJA VIENAM VAIKUI]]*IšVisoVaikų)+(MaistoStalas[[#This Row],[PORCIJA VIENAM SUAUGUSIAJAM]]*IšVisoSuaug)","v":360},{"$f":"IFERROR(MaistoStalas[[#This Row],[BENDROSIOS IŠLAIDOS]]/MaistoStalas[[#This Row],[IŠ VISO PORCIJŲ]],\"\")","v":{"v":0.06944444444444445,"d":"0.07 Lt"}},{"$f":"IFERROR(MaistoStalas[[#This Row],[PORCIJOS KAINA]]*MaistoStalas[[#This Row],[PORCIJA VIENAM VAIKUI]],\"\")","v":{"v":0.3472222222222222,"d":"0.35 Lt"}},{"$f":"IFERROR(MaistoStalas[[#This Row],[PORCIJOS KAINA]]*MaistoStalas[[#This Row],[PORCIJA VIENAM SUAUGUSIAJAM]],\"\")","v":{"v":0.6944444444444444,"d":"0.69 Lt"}},"Įvairūs"]
[null,"Iš viso",{"$f":"SUBTOTAL(109,MaistoStalas[BENDROSIOS IŠLAIDOS])","v":{"v":475,"d":"475.00 Lt"}},{"$f":"SUBTOTAL(109,MaistoStalas[PORCIJA VIENAM VAIKUI])","v":34.5},{"$f":"SUBTOTAL(109,MaistoStalas[PORCIJA VIENAM SUAUGUSIAJAM])","v":65.5},{"$f":"SUBTOTAL(109,MaistoStalas[IŠ VISO PORCIJŲ])","v":2393},{"$f":"SUBTOTAL(109,MaistoStalas[PORCIJOS KAINA])","v":{"v":6.915706603622084,"d":"6.92 Lt"}},{"$f":"SUBTOTAL(109,MaistoStalas[IŠLAIDOS VIENAM VAIKUI])","v":{"v":7.252884190656953,"d":"7.25 Lt"}},{"$f":"SUBTOTAL(109,MaistoStalas[IŠLAIDOS VIENAM SUAUGUSIAJAM])","v":{"v":12.690089084110037,"d":"12.69 Lt"}}]

{"sheet":"Kiti būtiniausieji produktai","index":3,"n_rows":30,"n_cols":5,"rows_kept":30,"merged":[[14,1,14,4],[22,1,22,4]]}
[]
[]
[null,"Kiti svarbūs dalykai"]
[]
[]
[null,"Įranga ir atsargos","Kaina","Įsigyta","Pastabos"]
[null,"Kambarių/salių nuoma",{"v":250,"d":"250.00 Lt"},"Taip"]
[null,"Paklodės ir užvalkalai",{"v":30,"d":"30.00 Lt"},"Taip","Nuoma"]
[null,"Stalai ir kėdės",{"v":0,"d":"0.00 Lt"},null,"Įskaičiuota į salės nuomą"]
[null,"Mažos servetėlės",{"v":25,"d":"25.00 Lt"}]
[null,"Didelės servetėlės",{"v":20,"d":"20.00 Lt"},null,"Nuoma"]
[null,"Patarnavimas prie stalo",{"v":50,"d":"50.00 Lt"},null,"Nuoma"]
[null,"Stiklo prekės",{"v":25,"d":"25.00 Lt"},null,"Nuoma"]
[null,"Iš viso",{"$f":"SUBTOTAL(109,_1StalBiudžet[Kaina])","v":{"v":400,"d":"400.00 Lt"}}]
[]
[]
[null,"Papuošimai","Kaina","Įsigyta","Pastabos"]
[null,"Balionai",{"v":25,"d":"25.00 Lt"}]
[null,"Helio dujų balionas",{"v":50,"d":"50.00 Lt"},null,"Nuoma"]
[null,"Papuošimai",{"v":100,"d":"100.00 Lt"},"Taip","Iš viso 10"]
[null,"Stiklinės vazos",{"v":0,"d":"0.00 Lt"},null,"Pasiskolinimas iš Sandy"]
[null,"Iš viso",{"$f":"SUBTOTAL(109,_2StalBiudžet[Kaina])","v":{"v":175,"d":"175.00 Lt"}}]
[]
[]
[null,"Kita","Kaina","Įsigyta","Pastabos"]
[null,"Kvietimai",{"v":50,"d":"50.00 Lt"},"Taip"]
[null,"Pašto išlaidos",{"v":60,"d":"60.00 Lt"},"Taip"]
[null,"Fotografas",{"v":125,"d":"125.00 Lt"},null,"2 valandos (14.00–16.00)"]
[null,"Šventinės dekoracijos",{"v":50,"d":"50.00 Lt"}]
[null,"Iš viso",{"$f":"SUBTOTAL(109,_3StalBiudžet[Kaina])","v":{"v":285,"d":"285.00 Lt"}}]

{"sheet":"Sėdėjimo vietų schema","index":4,"n_rows":43,"n_cols":34,"rows_kept":43,"merged":[[35,0,35,17],[35,19,35,33]]}
["Sėdėjimo tvarka"]
{"$rows_empty":33}
[{"$nulls":33},"*1 kvadratas= apytiksliai 1 kvadratinė pėda"]
["Pastabos",{"$nulls":18},{"$f":"\" Bendras patvirtintų svečių skaičius: \"&PatvirtintiSvečiai","v":" Bendras patvirtintų svečių skaičius: 46"}]
[{"$nulls":19},"Stalui paruošti galite naudoti bet kurį iš šių elementų:"]
[{"$nulls":20},{"$f":"ROUNDUP(PatvirtintiSvečiai/6,0)&\" apvalūs 137 cm skersmens stalai (6 vietos)\"","v":"8 apvalūs 137 cm skersmens stalai (6 vietos)"}]
[{"$nulls":20},{"$f":"ROUNDUP(PatvirtintiSvečiai/8,0) &\" apvalūs 152 cm skersmens stalai (8 vietos)\"","v":"6 apvalūs 152 cm skersmens stalai (8 vietos)"}]
[{"$nulls":20},{"$f":"ROUNDUP(PatvirtintiSvečiai/10,0)&\" apvalūs 183 cm skersmens stalai (10 vietų)\"","v":"5 apvalūs 183 cm skersmens stalai (10 vietų)"}]
[{"$nulls":20},{"$f":"ROUNDUP(PatvirtintiSvečiai/6,0)& \" keturkampiai 76 x 183 cm stalai (6 vietos)\"","v":"8 keturkampiai 76 x 183 cm stalai (6 vietos)"}]
[{"$nulls":20},{"$f":"ROUNDUP(PatvirtintiSvečiai/8,0)&\" keturkampiai 76 x 245 cm stalai (8 vietos)\"","v":"6 keturkampiai 76 x 245 cm stalai (8 vietos)"}]
[{"$nulls":19},"(Pageidaujamas atstumas tarp stalų: 42 coliai)"]